[Event "Vastgota Open 2023"]
[Site "Skara stadshotell, Jarnvagsgatan 5, Skara, Sweden"]
[Date "2023.02.18"]
[Round "3.3"]
[White "Ronneland, Daniel"]
[Black "Seo, Jung Min"]
[Result "0-1"]
[TimeControl "15 minutes + 5 seconds per move from move one (Round 1 - 2) / 30 minutes + 10 seconds per move from move one (Round 3 - 9)"]
[BlackTitle "IM"]
[WhiteFideId "1702130"]
[BlackFideId "1734687"]
[WhiteElo "2188"]
[BlackElo "2448"]

1. e4 {[%clk 00:30:19]} {[%emt 00:00:01]} c5 {[%clk 00:30:18]} {[%emt
00:00:04]} 2. Nf3 {[%clk 00:30:21]} {[%emt 00:00:06]} e6 {[%clk 00:30:25]}
{[%emt 00:00:03]} 3. d4 {[%clk 00:30:27]} {[%emt 00:00:04]} cxd4 {[%clk
00:30:34]} {[%emt 00:00:01]} 4. Nxd4 {[%clk 00:30:23]} {[%emt 00:00:14]} Nc6
{[%clk 00:30:33]} {[%emt 00:00:11]} 5. Nc3 {[%clk 00:30:16]} {[%emt 00:00:17]}
Qc7 {[%clk 00:30:18]} {[%emt 00:00:26]} 6. Be3 {[%clk 00:28:27]} {[%emt
00:01:58]} a6 {[%clk 00:30:25]} {[%emt 00:00:03]} 7. Qd2 {[%clk 00:26:52]}
{[%emt 00:01:45]} Nf6 {[%clk 00:29:55]} {[%emt 00:00:40]} 8. f3 {[%clk
00:26:37]} {[%emt 00:00:25]} h5 {[%clk 00:24:20]} {[%emt 00:05:44]} 9. O-O-O
{[%clk 00:26:23]} {[%emt 00:00:24]} b5 {[%clk 00:23:48]} {[%emt 00:00:43]} 10.
Nb3 {[%clk 00:24:15]} {[%emt 00:02:18]} Ne5 {[%clk 00:18:35]} {[%emt 00:05:23]}
11. Bf4 {[%clk 00:17:12]} {[%emt 00:07:13]} Rb8 {[%clk 00:17:37]} {[%emt
00:01:08]} 12. Kb1 {[%clk 00:16:29]} {[%emt 00:00:52]} d6 {[%clk 00:17:21]}
{[%emt 00:00:27]} 13. Bxe5 {[%clk 00:13:39]} {[%emt 00:03:00]} dxe5 {[%clk
00:17:28]} {[%emt 00:00:03]} 14. a4 {[%clk 00:10:57]} {[%emt 00:02:52]} bxa4
{[%clk 00:12:40]} {[%emt 00:04:59]} 15. Nxa4 {[%clk 00:10:56]} {[%emt
00:00:10]} Bb4 {[%clk 00:12:40]} {[%emt 00:00:09]} 16. Qe3 {[%clk 00:09:50]}
{[%emt 00:01:16]} O-O {[%clk 00:12:35]} {[%emt 00:00:16]} 17. Nac5 {[%clk
00:09:11]} {[%emt 00:00:48]} Qb6 {[%clk 00:12:06]} {[%emt 00:00:40]} 18. Rd3
{[%clk 00:06:39]} {[%emt 00:02:42]} a5 {[%clk 00:11:26]} {[%emt 00:00:51]} 19.
Be2 {[%clk 00:05:59]} {[%emt 00:00:49]} Bb7 {[%clk 00:10:37]} {[%emt 00:00:59]}
20. Nxb7 {[%clk 00:05:37]} {[%emt 00:00:32]} Qxb7 {[%clk 00:10:46]} {[%emt
00:00:02]} 21. Qc1 {[%emt 00:03:42]} Rfc8 {[%clk 00:10:27]} 22. c3 {[%clk
00:02:07]} {[%emt 00:00:36]} a4 {[%clk 00:10:24]} {[%emt 00:00:13]} 23. Na1
{[%clk 00:01:40]} {[%emt 00:00:37]} Ba3 {[%clk 00:10:10]} {[%emt 00:00:18]} 24.
Rd2 {[%clk 00:01:36]} {[%emt 00:00:19]} Bc5 {[%clk 00:10:01]} {[%emt 00:00:19]}
25. Qc2 {[%clk 00:01:14]} {[%emt 00:00:32]} Bd4 {[%clk 00:07:46]} {[%emt
00:02:26]} 26. Rd3 {[%clk 00:00:57]} {[%emt 00:00:27]} a3 {[%clk 00:07:19]}
{[%emt 00:00:37]} 27. b3 {[%clk 00:01:00]} {[%emt 00:00:07]} a2+ {[%clk
00:07:28]} 28. Qxa2 {[%clk 00:00:35]} {[%emt 00:00:36]} Rxc3 {[%clk 00:07:18]}
{[%emt 00:00:20]} 29. Rxc3 {[%clk 00:00:40]} {[%emt 00:00:05]} Bxc3 {[%clk
00:07:27]} 30. Bc4 {[%clk 00:00:23]} {[%emt 00:00:26]} Ra8 {[%clk 00:07:31]}
{[%emt 00:00:05]} 0-1

[Event "Vastgota Open 2023"]
[Site "Skara stadshotell, Jarnvagsgatan 5, Skara, Sweden"]
[Date "2023.02.18"]
[Round "3.4"]
[White "Olsson, Simon"]
[Black "Galperin, Platon"]
[Result "0-1"]
[TimeControl "15 minutes + 5 seconds per move from move one (Round 1 - 2) / 30 minutes + 10 seconds per move from move one (Round 3 - 9)"]
[BlackTitle "GM"]
[WhiteFideId "1707345"]
[BlackFideId "14165414"]
[WhiteElo "2125"]
[BlackElo "2429"]

1. d4 {[%clk 00:30:17]} {[%emt 00:00:04]} Nf6 {[%clk 00:30:18]} 2. Bg5 {[%clk
00:30:23]} {[%emt 00:00:05]} d5 {[%clk 00:30:26]} {[%emt 00:00:02]} 3. Bxf6
{[%clk 00:30:25]} {[%emt 00:00:07]} gxf6 {[%clk 00:30:34]} {[%emt 00:00:02]} 4.
e3 {[%clk 00:30:27]} {[%emt 00:00:09]} c5 {[%clk 00:30:42]} {[%emt 00:00:02]} 5.
dxc5 {[%clk 00:30:18]} {[%emt 00:00:20]} Nc6 {[%clk 00:30:49]} {[%emt
00:00:02]} 6. c4 {[%clk 00:29:11]} {[%emt 00:01:17]} d4 {[%clk 00:30:44]}
{[%emt 00:00:14]} 7. exd4 {[%clk 00:27:35]} {[%emt 00:01:47]} Qxd4 {[%clk
00:30:22]} {[%emt 00:00:31]} 8. Nc3 {[%clk 00:26:13]} {[%emt 00:01:33]} Qxc5
{[%clk 00:30:03]} {[%emt 00:00:29]} 9. Qd5 {[%clk 00:21:55]} {[%emt 00:04:28]}
Qb4 {[%clk 00:26:08]} {[%emt 00:04:04]} 10. O-O-O {[%clk 00:21:55]} {[%emt
00:00:10]} Bg4 {[%clk 00:22:35]} {[%emt 00:03:43]} 11. Be2 {[%clk 00:17:42]}
{[%emt 00:04:24]} Bh6+ {[%clk 00:21:54]} {[%emt 00:00:51]} 12. Kb1 {[%clk
00:14:05]} {[%emt 00:03:47]} Rd8 {[%clk 00:22:03]} {[%emt 00:00:01]} 13. Qb5
{[%clk 00:13:54]} {[%emt 00:00:22]} Qxb5 {[%clk 00:21:23]} {[%emt 00:00:49]} 14.
cxb5 {[%clk 00:13:42]} {[%emt 00:00:21]} Bf5+ {[%clk 00:21:25]} {[%emt
00:00:08]} 15. Ka1 {[%clk 00:13:33]} {[%emt 00:00:20]} Nd4 {[%clk 00:21:16]}
{[%emt 00:00:19]} 16. a4 {[%clk 00:12:02]} {[%emt 00:01:41]} Bc2 {[%clk
00:20:39]} {[%emt 00:00:46]} 17. Rf1 {[%clk 00:11:17]} {[%emt 00:00:55]} Rg8
{[%clk 00:19:53]} {[%emt 00:00:56]} 18. g3 {[%clk 00:10:55]} {[%emt 00:00:33]}
Bd2 {[%clk 00:19:54]} {[%emt 00:00:08]} 19. f4 {[%clk 00:04:54]} {[%emt
00:06:11]} Bxc3 {[%clk 00:18:40]} {[%emt 00:01:24]} 20. bxc3 {[%clk 00:05:03]}
{[%emt 00:00:01]} Be4 {[%clk 00:18:34]} {[%emt 00:00:16]} 21. cxd4 {[%clk
00:02:31]} {[%emt 00:02:43]} Bxh1 {[%clk 00:18:41]} {[%emt 00:00:03]} 22. Rd1
{[%clk 00:02:36]} {[%emt 00:00:04]} Bd5 {[%clk 00:18:31]} {[%emt 00:00:20]} 23.
Kb2 {[%clk 00:02:40]} {[%emt 00:00:07]} Kd7 {[%clk 00:18:37]} {[%emt 00:00:04]}
24. Nf3 {[%clk 00:02:31]} {[%emt 00:00:18]} Rc8 {[%clk 00:18:43]} {[%emt
00:00:04]} 25. Nd2 {[%clk 00:02:15]} {[%emt 00:00:26]} Rc7 {[%clk 00:18:50]}
{[%emt 00:00:04]} 26. Bd3 {[%clk 00:01:49]} {[%emt 00:00:35]} Rgc8 {[%clk
00:18:51]} {[%emt 00:00:09]} 27. Nb1 {[%clk 00:01:22]} {[%emt 00:00:37]} e6
{[%clk 00:18:49]} {[%emt 00:00:12]} 28. Re1 {[%clk 00:01:13]} {[%emt 00:00:20]}
Kd6 {[%clk 00:18:54]} {[%emt 00:00:04]} 29. Rd1 {[%clk 00:01:02]} {[%emt
00:00:22]} h5 {[%clk 00:18:58]} {[%emt 00:00:05]} 30. Re1 {[%clk 00:01:01]}
{[%emt 00:00:12]} f5 {[%clk 00:18:57]} {[%emt 00:00:10]} 31. Rd1 {[%clk
00:00:48]} {[%emt 00:00:23]} h4 {[%clk 00:19:00]} {[%emt 00:00:07]} 32. Rg1
{[%clk 00:00:45]} {[%emt 00:00:13]} hxg3 {[%clk 00:18:59]} {[%emt 00:00:11]} 33.
hxg3 {[%clk 00:00:35]} {[%emt 00:00:20]} Rh8 {[%clk 00:19:06]} {[%emt
00:00:02]} 0-1

[Event "Vastgota Open 2023"]
[Site "Skara stadshotell, Jarnvagsgatan 5, Skara, Sweden"]
[Date "2023.02.18"]
[Round "3.5"]
[White "Golubka, Petro"]
[Black "Bjorklund, Thomas"]
[Result "1-0"]
[TimeControl "15 minutes + 5 seconds per move from move one (Round 1 - 2) / 30 minutes + 10 seconds per move from move one (Round 3 - 9)"]
[WhiteTitle "GM"]
[WhiteFideId "14114224"]
[BlackFideId "1724576"]
[WhiteElo "2407"]
[BlackElo "2108"]

1. e4 {[%clk 00:30:17]} {[%emt 00:00:01]} c5 {[%clk 00:30:17]} {[%emt
00:00:04]} 2. b3 {[%clk 00:30:25]} {[%emt 00:00:02]} Nc6 {[%clk 00:30:22]}
{[%emt 00:00:06]} 3. Bb2 {[%clk 00:30:31]} {[%emt 00:00:04]} d6 {[%clk
00:30:27]} {[%emt 00:00:05]} 4. Bb5 {[%clk 00:30:35]} {[%emt 00:00:05]} Bd7
{[%clk 00:30:34]} {[%emt 00:00:04]} 5. f4 {[%clk 00:30:41]} {[%emt 00:00:04]}
Nf6 {[%clk 00:30:38]} {[%emt 00:00:06]} 6. Qe2 {[%clk 00:30:20]} {[%emt
00:00:30]} e6 {[%clk 00:30:33]} {[%emt 00:00:15]} 7. Nf3 {[%clk 00:30:23]}
{[%emt 00:00:07]} Be7 {[%clk 00:30:39]} {[%emt 00:00:05]} 8. Bxc6 {[%clk
00:30:28]} {[%emt 00:00:05]} Bxc6 {[%clk 00:30:38]} {[%emt 00:00:11]} 9. Nc3
{[%clk 00:30:36]} {[%emt 00:00:02]} a6 {[%clk 00:30:40]} {[%emt 00:00:09]} 10.
d4 {[%clk 00:30:40]} {[%emt 00:00:05]} cxd4 {[%clk 00:30:41]} {[%emt 00:00:08]}
11. Nxd4 {[%clk 00:30:49]} Qb6 {[%clk 00:30:33]} {[%emt 00:00:19]} 12. O-O-O
{[%clk 00:30:50]} {[%emt 00:00:08]} O-O-O {[%clk 00:30:35]} {[%emt 00:00:09]}
13. g4 {[%clk 00:30:29]} {[%emt 00:00:31]} Rhe8 {[%clk 00:30:32]} {[%emt
00:00:13]} 14. g5 {[%clk 00:30:32]} {[%emt 00:00:07]} Nd7 {[%clk 00:30:35]}
{[%emt 00:00:07]} 15. h4 {[%clk 00:30:28]} {[%emt 00:00:14]} Nc5 {[%clk
00:30:41]} {[%emt 00:00:04]} 16. Rhe1 {[%clk 00:30:04]} {[%emt 00:00:33]} Kb8
{[%clk 00:30:28]} {[%emt 00:00:23]} 17. Qh5 {[%clk 00:29:51]} {[%emt 00:00:21]}
g6 {[%clk 00:30:11]} {[%emt 00:00:30]} 18. Qxh7 {[%clk 00:29:43]} {[%emt
00:00:18]} Rf8 {[%clk 00:29:15]} {[%emt 00:01:05]} 19. f5 {[%clk 00:29:18]}
{[%emt 00:00:35]} 1-0

[Event "Vastgota Open 2023"]
[Site "Skara stadshotell, Jarnvagsgatan 5, Skara, Sweden"]
[Date "2023.02.18"]
[Round "3.6"]
[White "Madebrink, Lars"]
[Black "Kucuksari, Kaan"]
[Result "0-1"]
[TimeControl "15 minutes + 5 seconds per move from move one (Round 1 - 2) / 30 minutes + 10 seconds per move from move one (Round 3 - 9)"]
[BlackTitle "IM"]
[WhiteFideId "1701347"]
[BlackFideId "6380166"]
[WhiteElo "2112"]
[BlackElo "2380"]

1. e4 {[%clk 00:30:17]} Nf6 {[%clk 00:29:23]} {[%emt 00:00:57]} 2. e5 {[%clk
00:30:23]} {[%emt 00:00:05]} Nd5 {[%clk 00:29:31]} {[%emt 00:00:01]} 3. d4
{[%clk 00:30:27]} {[%emt 00:00:06]} d6 {[%clk 00:29:40]} {[%emt 00:00:01]} 4.
Nf3 {[%clk 00:30:24]} {[%emt 00:00:13]} dxe5 {[%clk 00:29:47]} {[%emt
00:00:03]} 5. Nxe5 {[%clk 00:30:20]} {[%emt 00:00:13]} c6 {[%clk 00:29:54]}
{[%emt 00:00:04]} 6. Bd3 {[%clk 00:30:01]} {[%emt 00:00:28]} Nd7 {[%clk
00:29:28]} {[%emt 00:00:37]} 7. O-O {[%clk 00:29:26]} {[%emt 00:00:45]} Nxe5
{[%clk 00:29:13]} {[%emt 00:00:25]} 8. dxe5 {[%clk 00:29:32]} {[%emt 00:00:03]}
g6 {[%clk 00:28:13]} {[%emt 00:01:10]} 9. a3 {[%clk 00:29:09]} {[%emt
00:00:34]} Bg7 {[%clk 00:28:14]} {[%emt 00:00:08]} 10. c4 {[%clk 00:28:22]}
{[%emt 00:00:59]} Nb6 {[%clk 00:26:18]} {[%emt 00:02:06]} 11. Qe2 {[%clk
00:26:17]} {[%emt 00:02:14]} Qd4 {[%clk 00:24:56]} {[%emt 00:01:32]} 12. Nc3
{[%clk 00:21:27]} {[%emt 00:04:59]} Bg4 {[%clk 00:23:32]} {[%emt 00:01:34]} 13.
Qe3 {[%clk 00:19:03]} {[%emt 00:02:34]} O-O-O {[%clk 00:18:34]} {[%emt
00:05:09]} 14. c5 {[%clk 00:18:14]} {[%emt 00:01:00]} Qxe3 {[%clk 00:17:33]}
{[%emt 00:01:11]} 15. Bxe3 {[%clk 00:18:10]} {[%emt 00:00:13]} Rxd3 {[%clk
00:17:38]} {[%emt 00:00:04]} 16. cxb6 {[%clk 00:18:13]} {[%emt 00:00:08]} axb6
{[%clk 00:17:47]} {[%emt 00:00:02]} 17. Bxb6 {[%clk 00:17:55]} {[%emt
00:00:27]} Bxe5 {[%clk 00:17:51]} {[%emt 00:00:05]} 18. Rfe1 {[%clk 00:17:41]}
{[%emt 00:00:25]} f6 {[%clk 00:17:32]} {[%emt 00:00:29]} 19. h3 {[%clk
00:17:17]} {[%emt 00:00:34]} Bf5 {[%clk 00:17:32]} {[%emt 00:00:10]} 20. g4
{[%clk 00:17:15]} {[%emt 00:00:12]} Bd7 {[%clk 00:17:37]} {[%emt 00:00:05]} 21.
Re4 {[%clk 00:13:26]} {[%emt 00:03:59]} c5 {[%clk 00:08:58]} {[%emt 00:08:49]}
22. Bxc5 {[%clk 00:08:22]} {[%emt 00:05:14]} Bc6 {[%clk 00:08:51]} {[%emt
00:00:17]} 23. Re3 {[%clk 00:08:18]} {[%emt 00:00:14]} Rxe3 {[%clk 00:08:58]}
{[%emt 00:00:03]} 24. Bxe3 {[%clk 00:08:19]} {[%emt 00:00:09]} g5 {[%clk
00:09:02]} {[%emt 00:00:07]} 25. Kf1 {[%clk 00:07:19]} {[%emt 00:01:09]} h5
{[%clk 00:08:07]} {[%emt 00:01:05]} 26. Ke2 {[%clk 00:07:20]} {[%emt 00:00:09]}
Bg2 {[%clk 00:08:10]} {[%emt 00:00:06]} 27. Rc1 {[%clk 00:06:38]} {[%emt
00:00:53]} Bxh3 {[%clk 00:07:50]} {[%emt 00:00:29]} 28. gxh5 {[%clk 00:06:36]}
{[%emt 00:00:12]} Rxh5 {[%clk 00:07:35]} {[%emt 00:00:25]} 29. Bb6 {[%clk
00:05:46]} {[%emt 00:01:01]} Bg4+ {[%clk 00:07:26]} {[%emt 00:00:19]} 30. Kd3
{[%clk 00:04:48]} {[%emt 00:01:07]} Kd7 {[%clk 00:07:29]} {[%emt 00:00:09]} 31.
Kc2 {[%clk 00:03:45]} {[%emt 00:01:11]} f5 {[%clk 00:07:10]} {[%emt 00:00:29]}
32. Re1 {[%clk 00:03:35]} {[%emt 00:00:20]} Bg7 {[%clk 00:06:57]} {[%emt
00:00:24]} 33. Nd5 {[%clk 00:03:24]} {[%emt 00:00:21]} e6 {[%clk 00:06:52]}
{[%emt 00:00:14]} 34. Ne3 {[%clk 00:03:21]} {[%emt 00:00:14]} Bf3 {[%clk
00:06:58]} {[%emt 00:00:05]} 35. Nc4 {[%clk 00:03:16]} {[%emt 00:00:14]} Be4+
{[%clk 00:07:06]} {[%emt 00:00:03]} 36. Kb3 {[%clk 00:03:04]} {[%emt 00:00:21]}
Bd5 {[%clk 00:07:10]} {[%emt 00:00:06]} 37. Kb4 {[%clk 00:03:07]} {[%emt
00:00:08]} Rh4 {[%clk 00:07:13]} {[%emt 00:00:06]} 38. Rc1 {[%clk 00:03:13]}
{[%emt 00:00:04]} Kc6 {[%clk 00:07:15]} {[%emt 00:00:08]} 39. Bd8 {[%clk
00:03:07]} {[%emt 00:00:15]} b5 {[%clk 00:07:22]} {[%emt 00:00:04]} 0-1

[Event "Vastgota Open 2023"]
[Site "Skara stadshotell, Jarnvagsgatan 5, Skara, Sweden"]
[Date "2023.02.18"]
[Round "3.7"]
[White "Kockum, Anton Frisk"]
[Black "Evertsson, Lennart"]
[Result "1-0"]
[TimeControl "15 minutes + 5 seconds per move from move one (Round 1 - 2) / 30 minutes + 10 seconds per move from move one (Round 3 - 9)"]
[WhiteTitle "FM"]
[WhiteFideId "1709143"]
[BlackFideId "1705156"]
[WhiteElo "2367"]
[BlackElo "2095"]

1. d4 {[%clk 00:30:17]} {[%emt 00:00:01]} Nf6 {[%clk 00:16:14]} {[%emt
00:14:07]} 2. c4 {[%clk 00:30:24]} {[%emt 00:00:03]} c5 {[%clk 00:16:21]}
{[%emt 00:00:02]} 3. d5 {[%clk 00:30:33]} {[%emt 00:00:02]} e6 {[%clk
00:16:26]} {[%emt 00:00:05]} 4. Nf3 {[%clk 00:30:36]} {[%emt 00:00:07]} b5
{[%clk 00:16:29]} {[%emt 00:00:08]} 5. Bg5 {[%clk 00:30:24]} {[%emt 00:00:21]}
h6 {[%clk 00:16:08]} {[%emt 00:00:31]} 6. Bxf6 {[%clk 00:25:29]} {[%emt
00:05:06]} Qxf6 {[%clk 00:16:09]} {[%emt 00:00:07]} 7. Nc3 {[%clk 00:24:17]}
{[%emt 00:01:24]} b4 {[%clk 00:13:45]} {[%emt 00:02:33]} 8. Na4 {[%clk
00:24:24]} {[%emt 00:00:03]} Bb7 {[%clk 00:12:43]} {[%emt 00:01:12]} 9. e4
{[%clk 00:22:14]} {[%emt 00:02:20]} d6 {[%clk 00:12:20]} {[%emt 00:00:33]} 10.
Be2 {[%clk 00:21:39]} {[%emt 00:00:45]} Nd7 {[%clk 00:11:09]} {[%emt 00:01:20]}
11. a3 {[%clk 00:20:56]} {[%emt 00:00:54]} a5 {[%clk 00:10:44]} {[%emt
00:00:35]} 12. O-O {[%clk 00:21:02]} {[%emt 00:00:04]} Be7 {[%clk 00:09:53]}
{[%emt 00:01:01]} 13. Ne1 {[%clk 00:15:49]} {[%emt 00:05:23]} O-O {[%clk
00:07:41]} {[%emt 00:02:22]} 14. f4 {[%clk 00:14:57]} {[%emt 00:01:02]} Rfe8
{[%clk 00:06:05]} {[%emt 00:01:46]} 15. g3 {[%clk 00:12:27]} {[%emt 00:02:40]}
Bf8 {[%clk 00:05:11]} {[%emt 00:01:03]} 16. Bg4 {[%clk 00:11:35]} {[%emt
00:01:03]} Rad8 {[%clk 00:04:52]} {[%emt 00:00:29]} 17. Nf3 {[%clk 00:07:15]}
{[%emt 00:04:30]} exd5 {[%clk 00:04:40]} {[%emt 00:00:21]} 18. exd5 {[%clk
00:07:06]} {[%emt 00:00:20]} Re4 {[%clk 00:04:13]} {[%emt 00:00:37]} 19. Qd3
{[%clk 00:06:22]} {[%emt 00:00:55]} Qe7 {[%clk 00:03:52]} {[%emt 00:00:29]} 20.
Rfe1 {[%clk 00:03:53]} {[%emt 00:02:40]} Rxe1+ {[%clk 00:03:34]} {[%emt
00:00:28]} 21. Rxe1 {[%clk 00:04:02]} {[%emt 00:00:02]} Qf6 {[%clk 00:03:40]}
{[%emt 00:00:03]} 22. axb4 {[%clk 00:04:00]} {[%emt 00:00:13]} axb4 {[%clk
00:03:36]} {[%emt 00:00:13]} 23. b3 {[%clk 00:03:28]} {[%emt 00:00:42]} Bc8
{[%clk 00:02:41]} {[%emt 00:01:05]} 24. Kg2 {[%clk 00:03:04]} {[%emt 00:00:35]}
g6 {[%clk 00:02:36]} {[%emt 00:00:14]} 25. h4 {[%clk 00:03:10]} {[%emt
00:00:04]} Bg7 {[%clk 00:02:16]} {[%emt 00:00:30]} 26. h5 {[%clk 00:03:17]}
{[%emt 00:00:03]} Rf8 {[%clk 00:01:46]} {[%emt 00:00:40]} 27. hxg6 {[%clk
00:02:43]} {[%emt 00:00:45]} fxg6 {[%clk 00:01:51]} {[%emt 00:00:04]} 28. Re6
{[%clk 00:02:14]} {[%emt 00:00:39]} Qd8 {[%clk 00:01:35]} {[%emt 00:00:25]} 29.
Rxd6 {[%clk 00:02:09]} {[%emt 00:00:15]} g5 {[%clk 00:01:18]} {[%emt 00:00:28]}
30. Bxd7 {[%clk 00:01:26]} {[%emt 00:00:53]} Bxd7 {[%clk 00:01:25]} {[%emt
00:00:03]} 31. Nxc5 {[%clk 00:01:31]} {[%emt 00:00:04]} Qc7 {[%clk 00:01:32]}
{[%emt 00:00:04]} 32. Rxd7 {[%clk 00:01:35]} {[%emt 00:00:06]} Qxc5 {[%clk
00:01:39]} {[%emt 00:00:03]} 33. Qg6 {[%clk 00:01:41]} {[%emt 00:00:04]} 1-0